Workbook

Sheet 2020
A1: INDICADORES DE GESTION
A3: # | B3: CATEGORÍA | C3: INDICADOR | D3: MÉTRICAS | E3: FUENTE | F3: SUJETO | H3: RANGOS | L3: MES
H4: A mejorar | I4: Estandar | J4: Muy bueno | L4: 2020-01-01 | M4: 2020-02-02 | N4: 2020-03-05 | O4: 2020-04-06 | P4: 2020-05-08 | Q4: 2020-06-09 | R4: 2020-07-11 | S4: 2020-08-12 | T4: 2020-09-13 | U4: 2020-10-15 | V4: 2020-11-16 | W4: 2020-12-18
A5: 1 | B5: Rendimiento estadístico del despacho | C5: Entrada total | D5: Cantidad de entrados nuevos+reentrados + testimonio de piezas | E5: Sigma | F5: Despacho | H5: X >= 31 | I5: 31 > X > 29 | J5: X <= 29 | L5: 33 | M5: 32 | N5: 10 | O5: 19 | P5: 24 | Q5: 23 | R5: 30
A6: 2 | C6: Entrada de colegiados nuevos | D6: Porcentaje de asuntos colegiados entrados | E6: Sigma | F6: Despacho | H6: X >= 4 | I6: 4> X > 2 | J6: X < = 2 | L6: 1 | M6: 2 | N6: 1 | O6: 0 | P6: 1 | Q6: 2 | R6: 0
A7: 3 | C7: Entrada de unipersonales nuevos | D7: Porcentaje de asuntos unipersonales entrados | E7: Sigma | F7: Despacho | H7: X >= 28 | I7: 28> X > 26 | J7: X < = 26 | L7: 31 | M7: 26 | N7: 7 | O7: 18 | P7: 17 | Q7: 18 | R7: 29
A8: 4 | C8: Entrada de abreviados | D8: Informativo | E8: Sigma | F8: Despacho | L8: 1 | M8: 4 | N8: 2 | O8: 1 | P8: 5 | Q8: 0 | R8: 1
A9: 5 | C9: Entrada de asuntos desconocidos | D9: Informativo | E9: Sigma | F9: Despacho | L9: 0 | M9: 0 | N9: 0 | O9: 0 | P9: 0 | Q9: 0 | R9: 0
A10: 6 | C10: Asuntos terminados | D10: Cantidad total de asuntos terminados durante el mes | E10: Sigma | F10: Despacho | H10: X < = 29 | I10: 29 < X < 31 | J10: X >= 31 | L10: 7 | M10: 29 | N10: 23 | O10: 20 | P10: 28 | Q10: 24 | R10: 19
A11: 7 | C11: Circulante final total | D11: Cantidad de asuntosen circulante total | E11: Sigma | F11: Despacho | H11: X>= 276 | I11: 276 > X > 93 | J11: X < = 93 | L11: 180 | M11: 186 | N11: 175 | O11: 175 | P11: 173 | Q11: 172 | R11: 185
A12: 8 | C12: Circulante final en trámite | D12: Cantidad de asuntos del circulante en trámite | E12: Sigma | F12: Despacho | H12: X>= 31 | I12: 31 > X >25 | J12: X < =25 | L12: 24 | M12: 33 | N12: 28 | O12: 32 | P12: 34 | Q12: 32 | R12: 35
A13: 9 | C13: Efectividad de audiencias iniciales | D13: Audiencias iniciales realizadas/Audiencias iniciales señaladas | E13: Despacho | F13: Agenda | H13: X <= 90% | I13: 90% < X < 100% | J13: X > =100% | L13: 57.19 | M13: 78.37 | N13: 65 % | O13: 78-94% | P13: 88.46% | Q13: 84 % | R13: 75.75%
A14: 10 | C14: Efectividad en juicios | D14: Juicios celebrados/Juicios señalados | E14: Despacho | F14: Agenda | H14: X <= 90% | I14: 90% < X < 100% | J14: X > =100% | L14: 100 % | M14: 20 % | N14: 40.74% | O14: 0 % | P14: 28.57% | Q14: 84.21% | R14: 25%
A15: 11 | C15: Circulante final con resolución provisional | D15: Circulante al finalizar con resolución provisional | E15: Sigma | F15: Despacho | H15: X>= 245 | I15: 245 > X > 68 | J15: X < =68 | L15: 156 | M15: 153 | N15: 147 | O15: 143 | P15: 139 | Q15: 140 | R15: 150
A16: 12 | C16: Porcentaje de rendimiento | D16: (Asuntos terminados/entrada total)*100 | E16: Sigma | F16: Despacho | H16: X <= 90% | I16: 90% < X < 100% | J16: X > =100% | L16: =of:=[.L10]/[.L5] -> 21 % | M16: =of:=[.M10]/[.M5] -> 91 % | N16: =of:=[.N10]/[.N5] -> 230 % | O16: =of:=[.O10]/[.O5] -> 105 % | P16: =of:=[.P10]/[.P5] -> 117 % | Q16: =of:=[.Q10]/[.Q5] -> 104 % | R16: =of:=[.R10]/[.R5] -> 63 % | S16: =of:=[.S10]/[.S5] ->  | T16: =of:=[.T10]/[.T5] ->  | U16: =of:=[.U10]/[.U5] ->  | V16: =of:=[.V10]/[.V5] ->  | W16: =of:=[.W10]/[.W5] -> 
A17: 13 | B17: Plazos | C17: Tiempo promedio en trámite (audiencias iniciales) | D17: Plazo en el trámite de audiencias iniciales (días) | E17: Libro de entrada | F17: Despacho | H17: X > =1 | I17: 1< X < 1 | J17: X < =1 | L17: 7.03 | M17: 1.78 | N17: 1,6/ | O17: 0.47% | P17: 2.5 | Q17: 2.1 | R17: 2.13%
A18: 14 | C18: Tiempo promedio en trámite | D18: Desde que ingresa al despacho, hasta el momento que se dicta la sentencia | E18: Libro sentencias | F18: Colegiados | H18: X > =21 | I18: 21< X < 15 | J18: X < =15 | L18: 0 | M18: 0 | N18: 0 | O18: 0 | P18: 0 | Q18: 48 | R18: 1
F19: Unipersonales | H19: X > =21 | I19: 21< X < 15 | J19: X < =15 | L19: 19 | M19: 19 | N19: 39.57 | O19: 0 | P19: 3.33 | Q19: 75.5 | R19: 110.5
A20: 15 | C20: Plazo de espera en agenda (días) | D20: último asunto señalado en la agenda Cronos (Audiencias Iniciales-Juicios) | E20: Agenda | F20: Despacho | H20: X > =21 | I20: 21 > X >15 | J20: X < =15 | L20: 30 | M20: 37 | N20: 62 | O20: 74 | P20: 79 | Q20: 83 | R20: 48
A21: 16 | B21: Operacionales | C21: Cantidad de sentencias dictadas (Colegiados, Unipersonales, Abreviados, Sobreseimientos ) | D21: Sentencias dictadas | E21: Libro sentencias / SIGMA | F21: Juez 1 | H21: X <= 6 | I21: 6 < X < 7 | J21: X > = 7 | L21: 2 | M21: 7 | N21: 3 | O21: 5 | P21: 6 | Q21: 7 | R21: 1
F22: Juez 2 | H22: X <= 6 | I22: 6 < X < 7 | J22: X > = 7 | L22: 3 | M22: 9 | N22: 10 | O22: 6 | P22: 10 | Q22: 5 | R22: 5
F23: Juez 3 | H23: X <= 6 | I23: 6 < X < 7 | J23: X > = 7 | L23: 2 | M23: 10 | N23: 6 | O23: 4 | P23: 8 | Q23: 7 | R23: 3
F24: Juez 4 | H24: X <= 6 | I24: 6 < X < 7 | J24: X > = 7 | L24: 1 | M24: 2 | N24: 3 | O24: 3 | P24: 4 | Q24: 1 | R24: 9
A25: 17 | C25: Cantidad de sentencias dictadas - Tribunal Penal Ordinario (Unipersonales, Abreviados, Sobreseimientos) | D25: Sentencias ordinarias dictadas | E25: Libro sentencias | F25: Juez 1 | H25: X <= 4 | I25: 4 < X < 5 | J25: X > = 5 | L25: 1 | M25: 0 | N25: 0 | O25: 0 | P25: 0 | Q25: 0 | R25: 0
F26: Juez 2 | H26: X <= 4 | I26: 4 < X < 5 | J26: X > = 5 | L26: 1 | M26: 2 | N26: 0 | O26: 0 | P26: 0 | Q26: 0 | R26: 0
F27: Juez 3 | H27: X <= 4 | I27: 4 < X < 5 | J27: X > = 5 | L27: 0 | M27: 0 | N27: 0 | O27: 0 | P27: 0 | Q27: 0 | R27: 0
F28: Juez 4 | H28: X <= 4 | I28: 4 < X < 5 | J28: X > = 5 | L28: 0 | M28: 0 | N28: 0 | O28: 0 | P28: 0 | Q28: 0 | R28: 0
A29: 18 | C29: Cantidad de Medidas Alternas dictadas - Tribunal Penal Ordinario (Unipersonales, Abreviados, Sobreseimientos) | D29: Medidas alternas ordinarias dictadas | E29: Libro sentencias | F29: Juez 1 | L29: 1 | M29: 1 | N29: 0 | O29: 0 | P29: 0 | Q29: 0 | R29: 0
F30: Juez 2 | L30: 1 | M30: 0 | N30: 0 | O30: 0 | P30: 0 | Q30: 0 | R30: 1
F31: Juez 3 | L31: 4 | M31: 1 | N31: 1 | O31: 0 | P31: 0 | Q31: 0 | R31: 1
F32: Juez 4 | L32: 0 | M32: 0 | N32: 0 | O32: 0 | P32: 1 | Q32: 1 | R32: 0
A33: 19 | C33: Cantidad de votos por medidas alternas dictadas en el mes | D33: Votos emitidos | E33: Libro de votos | F33: Juez 1 | H33: X <= 9 | I33: 9 < X < 10 | J33: X > = 10 | L33: 13 | M33: 1 | N33: 0 | O33: 0 | P33: 0 | Q33: 2 | R33: 0
F34: Juez 2 | H34: X <= 9 | I34: 9 < X < 10 | J34: X > = 10 | L34: 5 | M34: 0 | N34: 0 | O34: 0 | P34: 1 | Q34: 1 | R34: 1
F35: Juez 3 | H35: X <= 9 | I35: 9 < X < 10 | J35: X > = 10 | L35: 11 | M35: 1 | N35: 4 | O35: 1 | P35: 1 | Q35: 0 | R35: 1
F36: Juez 4 | H36: X <= 9 | I36: 9 < X < 10 | J36: X > = 10 | L36: 59 | M36: 9 | N36: 3 | O36: 14 | P36: 9 | Q36: 9 | R36: 16
A37: 20 | C37: Cantidad de votos emitidos en el mes (No incluye Medidas Alternas) | D37: Votos emitidos | E37: Escritorio Virtual / Control físico | F37: Juez 1 | H37: X <= 37 | I37: 37 < X < 40 | J37: X > = 40 | L37: 2 | M37: 7 | N37: 1 | O37: 0 | P37: 8 | Q37: 4 | R37: 8
F38: Juez 2 | H38: X <= 37 | I38: 37 < X < 40 | J38: X > = 40 | L38: 3 | M38: 1 | N38: 0 | O38: 0 | P38: 1 | Q38: 0 | R38: 4
F39: Juez 3 | H39: X <= 37 | I39: 37 < X < 40 | J39: X > = 40 | L39: 2 | M39: 3 | N39: 1 | O39: 0 | P39: 2 | Q39: 3 | R39: 8
F40: Juez 4 | H40: X <= 37 | I40: 37 < X < 40 | J40: X > = 40 | L40: 1 | M40: 63 | N40: 22 | O40: 31 | P40: 39 | Q40: 37 | R40: 44
A41: 21 | C41: Cantidad de audiencias iniciales programadas en el mes | D41: Audiencias iniciales señaladas | E41: Agenda | F41: Juez 1 | H41: X <= 16 | I41: 16 < X < 18 | J41: X > =18 | L41: 1 | M41: 0 | N41: 0 | O41: 0 | P41: 2 | Q41: 0 | R41: 1
F42: Juez 2 | H42: X <= 16 | I42: 16 < X < 18 | J42: X > =18 | L42: 1 | M42: 0 | N42: 0 | O42: 0 | P42: 1 | Q42: 0 | R42: 0
F43: Juez 3 | H43: X <= 16 | I43: 16 < X < 18 | J43: X > =18 | L43: 5 | M43: 1 | N43: 0 | O43: 0 | P43: 0 | Q43: 0 | R43: 1
F44: Juez 4 | H44: X <= 16 | I44: 16 < X < 18 | J44: X > =18 | L44: 41 | M44: 37 | N44: 20 | O44: 19 | P44: 25 | Q44: 25 | R44: 31
A45: 22 | C45: Cantidad de otras audiencias (Verificación, Rebeldía) realizadas en el mes | D45: Otro tipo de audiencias señaladas | E45: Agenda | F45: Juez 1 | H45: X <= 4 | I45: 4 < X < 4 | J45: X > =4 | L45: 4 | M45: 3 | N45: 0 | O45: 0 | P45: 4 | Q45: 1 | R45: 2
F46: Juez 2 | H46: X <= 4 | I46: 4 < X < 4 | J46: X > =4 | L46: 2 | M46: 4 | N46: 0 | O46: 0 | P46: 1 | Q46: 0 | R46: 2
F47: Juez 3 | H47: X <= 4 | I47: 4 < X < 4 | J47: X > =4 | L47: 3 | M47: 5 | N47: 0 | O47: 0 | P47: 2 | Q47: 1 | R47: 3
F48: Juez 4 | H48: X <= 4 | I48: 4 < X < 4 | J48: X > =4 | L48: 7 | M48: 13 | N48: 3 | O48: 8 | P48: 5 | Q48: 7 | R48: 8
A49: 23 | C49: Cantidad de juicios | D49: Juicios a los que asistió (incluye Jueza o Juez que integra) | E49: Agenda | F49: Juez 1 | H49: X <= 6 | I49: 6 < X < 7 | J49: X > = 7 | L49: 1 | M49: 0 | N49: 0 | O49: 0 | P49: 1 | Q49: 5 | R49: 1
F50: Juez 2 | H50: X <= 6 | I50: 6 < X < 7 | J50: X > = 7 | L50: 2 | M50: 1 | N50: 3 | O50: 0 | P50: 1 | Q50: 8 | R50: 2
F51: Juez 3 | H51: X <= 6 | I51: 6 < X < 7 | J51: X > = 7 | L51: 2 | M51: 2 | N51: 3 | O51: 0 | P51: 2 | Q51: 6 | R51: 1
F52: Juez 4 | H52: X <= 6 | I52: 6 < X < 7 | J52: X > = 7 | L52: 0 | M52: 0 | N52: 0 | O52: 0 | P52: 0 | Q52: 0 | R52: 0
A53: 24 | C53: Porncentaje de rendimiento | D53: Cantidad de sentencias dictadas+cantidad de votos por medidas alternas+cantidad total de votos emitidos+otro tipo de audiencias señaladas | E53: Cálculo Automático | F53: Juez 1 | H53: X <= 90 | I53: 90% < X < 100% | J53: X > =100% | L53: =of:=+([.L21]+[.L33]+[.L41])/35 -> 46 % | M53: =of:=+([.M21]+[.M33]+[.M41])/35 -> 23 % | N53: =of:=+([.N21]+[.N33]+[.N41])/35 -> 9 % | O53: =of:=+([.O21]+[.O33]+[.O41])/35 -> 14 % | P53: =of:=+([.P21]+[.P33]+[.P41])/35 -> 23 % | Q53: =of:=+([.Q21]+[.Q33]+[.Q41])/35 -> 26 % | R53: =of:=+([.R21]+[.R33]+[.R41])/35 -> 6 % | S53: =of:=+([.S21]+[.S33]+[.S41])/35 -> 0 % | T53: =of:=+([.T21]+[.T33]+[.T41])/35 -> 0 % | U53: =of:=+([.U21]+[.U33]+[.U41])/35 -> 0 % | V53: =of:=+([.V21]+[.V33]+[.V41])/35 -> 0 % | W53: =of:=+([.W21]+[.W33]+[.W41])/35 -> 0 %
F54: Juez 2 | H54: X <= 90 | I54: 90% < X < 100% | J54: X > =100% | L54: =of:=+([.L22]+[.L34]+[.L42])/35 -> 26 % | M54: =of:=+([.M22]+[.M34]+[.M42])/35 -> 26 % | N54: =of:=+([.N22]+[.N34]+[.N42])/35 -> 29 % | O54: =of:=+([.O22]+[.O34]+[.O42])/35 -> 17 % | P54: =of:=+([.P22]+[.P34]+[.P42])/35 -> 34 % | Q54: =of:=+([.Q22]+[.Q34]+[.Q42])/35 -> 17 % | R54: =of:=+([.R22]+[.R34]+[.R42])/35 -> 17 % | S54: =of:=+([.S22]+[.S34]+[.S42])/35 -> 0 % | T54: =of:=+([.T22]+[.T34]+[.T42])/35 -> 0 % | U54: =of:=+([.U22]+[.U34]+[.U42])/35 -> 0 % | V54: =of:=+([.V22]+[.V34]+[.V42])/35 -> 0 % | W54: =of:=+([.W22]+[.W34]+[.W42])/35 -> 0 %
F55: Juez 3 | H55: X <= 90 | I55: 90% < X < 100% | J55: X > =100% | L55: =of:=+([.L23]+[.L35]+[.L43])/35 -> 51 % | M55: =of:=+([.M23]+[.M35]+[.M43])/35 -> 34 % | N55: =of:=+([.N23]+[.N35]+[.N43])/35 -> 29 % | O55: =of:=+([.O23]+[.O35]+[.O43])/35 -> 14 % | P55: =of:=+([.P23]+[.P35]+[.P43])/35 -> 26 % | Q55: =of:=+([.Q23]+[.Q35]+[.Q43])/35 -> 20 % | R55: =of:=+([.R23]+[.R35]+[.R43])/35 -> 14 % | S55: =of:=+([.S23]+[.S35]+[.S43])/35 -> 0 % | T55: =of:=+([.T23]+[.T35]+[.T43])/35 -> 0 % | U55: =of:=+([.U23]+[.U35]+[.U43])/35 -> 0 % | V55: =of:=+([.V23]+[.V35]+[.V43])/35 -> 0 % | W55: =of:=+([.W23]+[.W35]+[.W43])/35 -> 0 %
F56: Juez 4 | H56: X <= 90 | I56: 90% < X < 100% | J56: X > =100% | L56: =of:=+([.L24]+[.L36]+[.L44])/35 -> 289 % | M56: =of:=+([.M24]+[.M36]+[.M44])/35 -> 137 % | N56: =of:=+([.N24]+[.N36]+[.N44])/35 -> 74 % | O56: =of:=+([.O24]+[.O36]+[.O44])/35 -> 103 % | P56: =of:=+([.P24]+[.P36]+[.P44])/35 -> 109 % | Q56: =of:=+([.Q24]+[.Q36]+[.Q44])/35 -> 100 % | R56: =of:=+([.R24]+[.R36]+[.R44])/35 -> 160 % | S56: =of:=+([.S24]+[.S36]+[.S44])/35 -> 0 % | T56: =of:=+([.T24]+[.T36]+[.T44])/35 -> 0 % | U56: =of:=+([.U24]+[.U36]+[.U44])/35 -> 0 % | V56: =of:=+([.V24]+[.V36]+[.V44])/35 -> 0 % | W56: =of:=+([.W24]+[.W36]+[.W44])/35 -> 0 %
A57: 25 | C57: Continuaciones de audiencia inicial realizadas | D57: Cantidad de diligencias en las que se solicitó continuación | E57: Agenda | F57: Juez 1 | L57: 0 | M57: 0 | N57: 0 | O57: 0 | P57: 0 | Q57: 0 | R57: 0
F58: Juez 2 | L58: 0 | M58: 0 | N58: 0 | O58: 0 | P58: 0 | Q58: 0 | R58: 1
F59: Juez 3 | L59: 0 | M59: 0 | N59: 0 | O59: 0 | P59: 0 | Q59: 0 | R59: 0
F60: Juez 4 | L60: 2 | M60: 1 | N60: 0 | O60: 2 | P60: 1 | Q60: 0 | R60: 1
A61: 26 | C61: Continuaciones de juicio realizadas | D61: Cantidad de diligencias en las que se solicitó continuación | E61: Agenda | F61: Juez 1 | L61: 1 | M61: 1 | N61: 0 | O61: 0 | P61: 1 | Q61: 4 | R61: 2
F62: Juez 2 | L62: 3 | M62: 3 | N62: 2 | O62: 0 | P62: 1 | Q62: 4 | R62: 4
F63: Juez 3 | L63: 1 | M63: 1 | N63: 0 | O63: 0 | P63: 2 | Q63: 4 | R63: 0
F64: Juez 4 | L64: 0 | M64: 0 | N64: 0 | O64: 0 | P64: 0 | Q64: 0 | R64: 0
A66: Observaciones febrero: El motivo de que no se realizaran la mayoría de juicio señalados en el mes de febrero fué que porque no se presentaron los testigos o las citas daban negativas; esto por ordenes del Juez que le correspondía.
A67: Observaciones marzo:DEBIDO AL COVIT19 SE HA TENIDO QUE SEÑALAR JUICIOS EN FECHAS LARGAS OCASIONANDO UNA AFECTACIÓN EN EL PLAZO DE ESPERA EN AGENDA (P-15) A PARTIR DEL 18-3-20 SE SUSPENDIÓ TODO SEÑALAMIENTO AGENDADO Y SOLAMENTE SE REALIZO CONTINUACIÓN DE JUICIO Y ASUNTOS QUE TENGA REO PRESO (AUD INICIALES Y SUS CONTINUACIONES, REBELDES , JUICIOS Y ABREVIADOS ).
A68: Observaciones abril:ACATANDO LAS CIRCULARES SOLO SE ATENDÍAN CASOS DE PERSONAS DETENIDAS (AUDIENCIAS INICIALES, CONTINUACIONES DE AUDIENCIAS, REBELDES, JUICIO Y ABREVIADOS)
A69: Observaciones mayo: ACATANDO LA CIRCULAR LA MAYORIA DE LOS ABREVIADOS SE HACEN POR ESCRITO ASI COMO LOS SOBRESEIMIENTOS.
A71: Observaciones julio: EL TIEMPO EN AGENDA SE HA REDUCIDO A UN MES DE ESPERA PARA UN SEÑALAMIENTO DE JUICIO. 2) EL TIEMPO PROMEDIO EN TRÁMITE (P-14 Y P-15), SE AMPLIO, DEBIDO A QUE FUERON EXPEDIENTES QUE SE LE SUSPENDIÓ EL DEBATE POR LA PANDEMIA.
A72: Observaciones agosto:
A73: Observaciones setiembre:
A74: Observaciones octubre:
A75: Observaciones noviembre:
A76: Observaciones diciembre:
L104: 2019-06-15 | M104: 2019-04-02 | O104: =of:=[.L104]-[.M104] -> 74
